[Event "Titled Tuesday Blitz June 28 Late 2022"]
[White "Clawitter, Craig"]
[Black "Ipek, Egehan"]
[WhiteFideId "2023105"]
[BlackFideId "44523793"]
[WhiteElo "2238"]
[BlackElo "1413"]
[Result "0-1"]
[Round "08"]
[TimeControl "180+1"]
[Date "2022.06.29"]
[WhiteClock "0:00:06"]
[BlackClock "0:00:05"]

1. e4 {[%clk 0:03:00]}  c5 {[%clk 0:02:54]} 2. Nf3 {[%clk 0:03:01]}  e6 {[%clk 0:02:55]} 3. d4 {[%clk 0:03:01]}  cxd4 {[%clk 0:02:56]} 4. Nxd4 {[%clk 0:03:02]}  a6 {[%clk 0:02:56]} 5. Bd3 {[%clk 0:03:02]}  b5 {[%clk 0:02:57]} 6. a4 {[%clk 0:02:57]}  b4 {[%clk 0:02:53]} 7. O-O {[%clk 0:02:56]}  Bb7 {[%clk 0:02:51]} 8. Nd2 {[%clk 0:02:56]}  Nf6 {[%clk 0:02:47]} 9. Kh1 {[%clk 0:02:55]}  d5 {[%clk 0:02:45]} 10. e5 {[%clk 0:02:52]}  Nfd7 {[%clk 0:02:44]} 11. f4 {[%clk 0:02:51]}  Nc6 {[%clk 0:02:43]} 12. N2f3 {[%clk 0:02:50]}  Bc5 {[%clk 0:02:41]} 13. Nxc6 {[%clk 0:02:40]}  Bxc6 {[%clk 0:02:40]} 14. f5 {[%clk 0:02:41]}  Nf8 {[%clk 0:01:47]} 15. Ng5 {[%clk 0:02:32]}  exf5 {[%clk 0:01:12]} 16. Rxf5 {[%clk 0:02:18]}  Ra7 {[%clk 0:01:11]} 17. Qe2 {[%clk 0:01:53]}  Ne6 {[%clk 0:01:04]} 18. Nxe6 {[%clk 0:01:20]}  fxe6 {[%clk 0:01:03]} 19. Bg5 {[%clk 0:01:08]}  Be7 {[%clk 0:00:59]} 20. Rf7 {[%clk 0:00:36]}  Kxf7 {[%clk 0:00:38]} 21. Qh5+ {[%clk 0:00:35]}  Kg8 {[%clk 0:00:11]} 22. Be3 {[%clk 0:00:35]}  Be8 {[%clk 0:00:09]} 23. Qg4 {[%clk 0:00:29]}  Rc7 {[%clk 0:00:09]} 24. Rf1 {[%clk 0:00:25]}  Rc6 {[%clk 0:00:07]} 25. Bh6 {[%clk 0:00:20]}  Bg6 {[%clk 0:00:06]} 26. Bxg6 {[%clk 0:00:18]}  hxg6 {[%clk 0:00:06]} 27. Qxg6 {[%clk 0:00:13]}  Rxh6 {[%clk 0:00:06]} 28. Qf7+ {[%clk 0:00:13]}  Kh8 {[%clk 0:00:06]} 29. c3 {[%clk 0:00:08]}  bxc3 {[%clk 0:00:06]} 30. bxc3 {[%clk 0:00:09]}  Rxc3 {[%clk 0:00:07]} 31. h3 {[%clk 0:00:10]}  Rc4 {[%clk 0:00:05]} 32. Qf3 {[%clk 0:00:09]}  Bg5 {[%clk 0:00:04]} 33. Qg3 {[%clk 0:00:09]}  Bh4 {[%clk 0:00:04]} 34. Qf3 {[%clk 0:00:07]}  Re4 {[%clk 0:00:05]} 35. Qf7 {[%clk 0:00:07]}  Rxe5 {[%clk 0:00:04]} 36. Qa7 {[%clk 0:00:07]}  Re2 {[%clk 0:00:04]} 37. Rf7 {[%clk 0:00:06]}  Re1+ {[%clk 0:00:05]} 38. Kh2 {[%clk 0:00:06]}  Qd6+ {[%clk 0:00:05]} 0-1


[Site "https://www.chess.com"]

[Event "Titled Tuesday Blitz June 28 Late 2022"]
[White "Daeschler, Florian"]
[Black "Hoffmann, Asa"]
[WhiteFideId "20678193"]
[BlackFideId "2001470"]
[WhiteElo "2221"]
[BlackElo "2117"]
[Result "0-1"]
[Round "08"]
[TimeControl "180+1"]
[Date "2022.06.29"]
[WhiteClock "0:00:51"]
[BlackClock "0:01:24"]

1. d4 {[%clk 0:03:00]}  Nf6 {[%clk 0:02:59]} 2. c4 {[%clk 0:02:58]}  c5 {[%clk 0:02:55]} 3. d5 {[%clk 0:02:58]}  e5 {[%clk 0:02:54]} 4. Nc3 {[%clk 0:02:55]}  d6 {[%clk 0:02:54]} 5. e4 {[%clk 0:02:54]}  Be7 {[%clk 0:02:54]} 6. h3 {[%clk 0:02:55]}  Nbd7 {[%clk 0:02:54]} 7. g4 {[%clk 0:02:55]}  Nf8 {[%clk 0:02:54]} 8. Be2 {[%clk 0:02:43]}  Ng6 {[%clk 0:02:53]} 9. h4 {[%clk 0:02:43]}  h6 {[%clk 0:02:48]} 10. h5 {[%clk 0:02:39]}  Nf8 {[%clk 0:02:47]} 11. Be3 {[%clk 0:02:35]}  N6h7 {[%clk 0:02:46]} 12. Nh3 {[%clk 0:02:34]}  Ng5 {[%clk 0:02:46]} 13. f4 {[%clk 0:02:29]}  Nxh3 {[%clk 0:02:42]} 14. Rxh3 {[%clk 0:02:30]}  exf4 {[%clk 0:02:39]} 15. Bxf4 {[%clk 0:02:29]}  Bg5 {[%clk 0:02:36]} 16. Bg3 {[%clk 0:02:25]}  a6 {[%clk 0:02:36]} 17. Qd3 {[%clk 0:02:23]}  Nh7 {[%clk 0:02:31]} 18. e5 {[%clk 0:02:23]}  dxe5 {[%clk 0:02:21]} 19. Bxe5 {[%clk 0:02:19]}  O-O {[%clk 0:02:21]} 20. Ne4 {[%clk 0:02:12]}  Re8 {[%clk 0:02:19]} 21. Bc3 {[%clk 0:02:09]}  f5 {[%clk 0:02:15]} 22. Nxc5 {[%clk 0:01:59]}  fxg4 {[%clk 0:02:08]} 23. Rh2 {[%clk 0:01:58]}  Qe7 {[%clk 0:02:01]} 24. Bd4 {[%clk 0:01:49]}  Nf6 {[%clk 0:01:57]} 25. Kd1 {[%clk 0:01:46]}  b6 {[%clk 0:01:47]} 26. Nb3 {[%clk 0:01:34]}  Ne4 {[%clk 0:01:46]} 27. Kc2 {[%clk 0:01:31]}  Bf5 {[%clk 0:01:45]} 28. Rf1 {[%clk 0:01:27]}  Bh7 {[%clk 0:01:38]} 29. Bxg4 {[%clk 0:01:13]}  Nc5 {[%clk 0:01:30]} 30. Nxc5 {[%clk 0:01:05]}  Bxd3+ {[%clk 0:01:28]} 31. Nxd3 {[%clk 0:01:04]}  Qe4 {[%clk 0:01:25]} 32. Be6+ {[%clk 0:00:52]}  Rxe6 {[%clk 0:01:25]} 33. dxe6 {[%clk 0:00:51]}  Qxd4 {[%clk 0:01:25]} 34. Rf7 {[%clk 0:00:51]}  Qxc4+ {[%clk 0:01:24]} 0-1


[Site "https://www.chess.com"]

[Event "Titled Tuesday Blitz June 28 Late 2022"]
[White "Dauner, Benedikt"]
[Black "Prieto Aranguren, Alain"]
[WhiteFideId "16225899"]
[BlackFideId "2268906"]
[WhiteElo "2230"]
[BlackElo "2224"]
[Result "0-1"]
[Round "08"]
[TimeControl "180+1"]
[Date "2022.06.29"]
[WhiteClock "0:00:07"]
[BlackClock "0:00:16"]

1. b3 {[%clk 0:01:54]}  a5 {[%clk 0:02:58]} 2. Bb2 {[%clk 0:01:55]}  a4 {[%clk 0:02:58]} 3. Nf3 {[%clk 0:01:55]}  e6 {[%clk 0:02:57]} 4. e3 {[%clk 0:01:55]}  a3 {[%clk 0:02:57]} 5. Bc3 {[%clk 0:01:56]}  c6 {[%clk 0:02:57]} 6. d3 {[%clk 0:01:56]}  b5 {[%clk 0:02:55]} 7. Be2 {[%clk 0:01:56]}  b4 {[%clk 0:02:55]} 8. Bd2 {[%clk 0:01:57]}  c5 {[%clk 0:02:52]} 9. O-O {[%clk 0:01:57]}  Nc6 {[%clk 0:02:53]} 10. c3 {[%clk 0:01:57]}  Nf6 {[%clk 0:02:23]} 11. d4 {[%clk 0:01:57]}  Bb7 {[%clk 0:02:19]} 12. c4 {[%clk 0:01:56]}  Be7 {[%clk 0:02:15]} 13. Re1 {[%clk 0:01:55]}  Ne4 {[%clk 0:02:08]} 14. Bd3 {[%clk 0:01:54]}  f5 {[%clk 0:02:04]} 15. Qc2 {[%clk 0:01:53]}  O-O {[%clk 0:01:54]} 16. Re2 {[%clk 0:01:53]}  Bf6 {[%clk 0:01:46]} 17. Be1 {[%clk 0:01:10]}  cxd4 {[%clk 0:01:45]} 18. Nbd2 {[%clk 0:00:43]}  dxe3 {[%clk 0:01:44]} 19. Nxe4 {[%clk 0:00:44]}  fxe4 {[%clk 0:01:40]} 20. Bxe4 {[%clk 0:00:44]}  Bxa1 {[%clk 0:01:39]} 21. Bxh7+ {[%clk 0:00:45]}  Kh8 {[%clk 0:01:39]} 22. Rxe3 {[%clk 0:00:36]}  Qf6 {[%clk 0:01:20]} 23. Bd3 {[%clk 0:00:32]}  g6 {[%clk 0:01:14]} 24. h4 {[%clk 0:00:30]}  Kg7 {[%clk 0:01:13]} 25. Ng5 {[%clk 0:00:30]}  Ne5 {[%clk 0:00:57]} 26. Rg3 {[%clk 0:00:26]}  Nxd3 {[%clk 0:00:55]} 27. Qxd3 {[%clk 0:00:27]}  Bc3 {[%clk 0:00:51]} 28. Qxd7+ {[%clk 0:00:20]}  Rf7 {[%clk 0:00:48]} 29. Nxf7 {[%clk 0:00:18]}  Qxf7 {[%clk 0:00:48]} 30. Bxc3+ {[%clk 0:00:14]}  bxc3 {[%clk 0:00:47]} 31. Qd4+ {[%clk 0:00:14]}  Kh6 {[%clk 0:00:46]} 32. Qxc3 {[%clk 0:00:13]}  Rd8 {[%clk 0:00:43]} 33. Qe3+ {[%clk 0:00:13]}  Kh7 {[%clk 0:00:43]} 34. h5 {[%clk 0:00:11]}  Rd1+ {[%clk 0:00:39]} 35. Kh2 {[%clk 0:00:11]}  gxh5 {[%clk 0:00:29]} 36. b4 {[%clk 0:00:11]}  Qf6 {[%clk 0:00:21]} 37. Qe2 {[%clk 0:00:08]}  Qh4+ {[%clk 0:00:19]} 38. Rh3 {[%clk 0:00:08]}  Qf4+ {[%clk 0:00:19]} 39. g3 {[%clk 0:00:07]}  Rh1# {[%clk 0:00:16]} 0-1


[Site "https://www.chess.com"]

[Event "Titled Tuesday Blitz June 28 Late 2022"]
[White "Estrada Nieto, Julian"]
[Black "Vlassov, Nikolai"]
[WhiteFideId "5101018"]
[BlackFideId "4103360"]
[WhiteElo "2252"]
[BlackElo "2407"]
[Result "1-0"]
[Round "08"]
[TimeControl "180+1"]
[Date "2022.06.29"]
[WhiteClock "0:00:40"]
[BlackClock "0:01:58"]

1. e4 {[%clk 0:03:00]}  Nc6 {[%clk 0:02:58]} 2. Nf3 {[%clk 0:03:00]}  d5 {[%clk 0:02:57]} 3. exd5 {[%clk 0:02:56]}  Qxd5 {[%clk 0:02:57]} 4. Nc3 {[%clk 0:02:56]}  Qa5 {[%clk 0:02:56]} 5. Bb5 {[%clk 0:02:54]}  Bd7 {[%clk 0:02:54]} 6. b4 {[%clk 0:02:47]}  Qxb4 {[%clk 0:02:53]} 7. Rb1 {[%clk 0:02:45]}  Qd6 {[%clk 0:02:52]} 8. O-O {[%clk 0:02:34]}  Nf6 {[%clk 0:02:51]} 9. Bc4 {[%clk 0:02:27]}  Nd8 {[%clk 0:02:50]} 10. d4 {[%clk 0:02:19]}  e6 {[%clk 0:02:50]} 11. Ne5 {[%clk 0:02:14]}  c5 {[%clk 0:02:41]} 12. Nb5 {[%clk 0:02:09]}  Bxb5 {[%clk 0:02:31]} 13. Bxb5+ {[%clk 0:02:08]}  Nc6 {[%clk 0:02:30]} 14. Bf4 {[%clk 0:01:57]}  Rc8 {[%clk 0:02:24]} 15. Nxc6 {[%clk 0:01:51]}  bxc6 {[%clk 0:02:18]} 16. Bxd6 {[%clk 0:01:50]}  Bxd6 {[%clk 0:02:18]} 17. dxc5 {[%clk 0:01:41]}  Bxc5 {[%clk 0:02:15]} 18. Bxc6+ {[%clk 0:01:39]}  Kf8 {[%clk 0:02:15]} 19. Bf3 {[%clk 0:01:27]}  g6 {[%clk 0:02:14]} 20. Rb7 {[%clk 0:01:18]}  Kg7 {[%clk 0:02:14]} 21. Qe2 {[%clk 0:01:18]}  Bd4 {[%clk 0:02:10]} 22. Qxe6 {[%clk 0:01:14]}  Rhf8 {[%clk 0:02:09]} 23. Rxf7+ {[%clk 0:01:04]}  Rxf7 {[%clk 0:02:08]} 24. Qxc8 {[%clk 0:01:04]}  Bb6 {[%clk 0:02:08]} 25. Qe6 {[%clk 0:00:49]}  Rd7 {[%clk 0:02:04]} 26. c4 {[%clk 0:00:48]}  Rd2 {[%clk 0:02:02]} 27. h4 {[%clk 0:00:45]}  h5 {[%clk 0:01:58]} 28. Qe7+ {[%clk 0:00:40]} 1-0


[Site "https://www.chess.com"]

[Event "Titled Tuesday Blitz June 28 Late 2022"]
[White "Fajdetic, Hrvoje"]
[Black "Kapitsyn, Mark"]
[WhiteFideId "14501945"]
[BlackFideId "4116240"]
[WhiteElo "2172"]
[BlackElo "2265"]
[Result "1-0"]
[Round "08"]
[TimeControl "180+1"]
[Date "2022.06.29"]
[WhiteClock "0:00:09"]
[BlackClock "0:00:01"]

1. b3 {[%clk 0:02:57]}  d5 {[%clk 0:02:31]} 2. Bb2 {[%clk 0:02:57]}  c5 {[%clk 0:02:32]} 3. f4 {[%clk 0:02:54]}  f6 {[%clk 0:02:31]} 4. Nf3 {[%clk 0:02:55]}  Bg4 {[%clk 0:02:28]} 5. e3 {[%clk 0:02:54]}  Nc6 {[%clk 0:02:29]} 6. Be2 {[%clk 0:02:54]}  e6 {[%clk 0:02:29]} 7. O-O {[%clk 0:02:52]}  Bd6 {[%clk 0:02:29]} 8. d3 {[%clk 0:02:40]}  Nge7 {[%clk 0:02:29]} 9. Nh4 {[%clk 0:02:23]}  Bxe2 {[%clk 0:02:25]} 10. Qxe2 {[%clk 0:02:24]}  O-O {[%clk 0:02:25]} 11. Nd2 {[%clk 0:02:22]}  Qd7 {[%clk 0:02:09]} 12. Qh5 {[%clk 0:02:09]}  Qe8 {[%clk 0:02:02]} 13. Qg4 {[%clk 0:02:06]}  Qf7 {[%clk 0:01:52]} 14. f5 {[%clk 0:02:02]}  e5 {[%clk 0:01:22]} 15. e4 {[%clk 0:02:01]}  Kh8 {[%clk 0:01:14]} 16. Rf3 {[%clk 0:01:59]}  Nd4 {[%clk 0:01:08]} 17. Rh3 {[%clk 0:01:54]}  Kg8 {[%clk 0:01:07]} 18. c3 {[%clk 0:01:48]}  Ndc6 {[%clk 0:01:03]} 19. Rf1 {[%clk 0:01:37]}  Rfd8 {[%clk 0:00:39]} 20. Rff3 {[%clk 0:01:34]}  b5 {[%clk 0:00:37]} 21. Rfg3 {[%clk 0:01:31]}  c4 {[%clk 0:00:30]} 22. Ng6 {[%clk 0:01:27]}  hxg6 {[%clk 0:00:29]} 23. fxg6 {[%clk 0:01:27]}  Nxg6 {[%clk 0:00:28]} 24. exd5 {[%clk 0:01:24]}  Nce7 {[%clk 0:00:19]} 25. dxc4 {[%clk 0:01:15]}  bxc4 {[%clk 0:00:19]} 26. Qh5 {[%clk 0:00:54]}  Bc5+ {[%clk 0:00:14]} 27. Kh1 {[%clk 0:00:52]}  Qxd5 {[%clk 0:00:12]} 28. Nf1 {[%clk 0:00:26]}  Kf7 {[%clk 0:00:05]} 29. bxc4 {[%clk 0:00:13]}  Qxc4 {[%clk 0:00:04]} 30. Rf3 {[%clk 0:00:13]}  Rd1 {[%clk 0:00:02]} 31. Rxf6+ {[%clk 0:00:10]}  gxf6 {[%clk 0:00:02]} 32. Qxd1 {[%clk 0:00:11]}  Rh8 {[%clk 0:00:01]} 33. Rg3 {[%clk 0:00:09]} 1-0


[Site "https://www.chess.com"]

[Event "Titled Tuesday Blitz June 28 Late 2022"]
[White "Florescu, Codrut-Constantin"]
[Black "Diaz, Fernando"]
[WhiteFideId "1202200"]
[BlackFideId "3701255"]
[WhiteElo "2191"]
[BlackElo "1934"]
[Result "0-1"]
[Round "08"]
[TimeControl "180+1"]
[Date "2022.06.29"]
[WhiteClock "0:00:12"]
[BlackClock "0:00:30"]

1. d4 {[%clk 0:03:00]}  e5 {[%clk 0:02:59]} 2. dxe5 {[%clk 0:03:00]}  d6 {[%clk 0:02:58]} 3. exd6 {[%clk 0:02:59]}  Bxd6 {[%clk 0:02:59]} 4. Nf3 {[%clk 0:02:59]}  Nc6 {[%clk 0:03:00]} 5. Bg5 {[%clk 0:02:57]}  f6 {[%clk 0:03:00]} 6. Bh4 {[%clk 0:02:57]}  Bg4 {[%clk 0:03:01]} 7. Nbd2 {[%clk 0:02:55]}  Qe7 {[%clk 0:03:01]} 8. Bg3 {[%clk 0:02:53]}  O-O-O {[%clk 0:03:01]} 9. c3 {[%clk 0:02:53]}  Nh6 {[%clk 0:02:59]} 10. Bxd6 {[%clk 0:02:50]}  Rxd6 {[%clk 0:02:59]} 11. Qa4 {[%clk 0:02:46]}  Rhd8 {[%clk 0:02:56]} 12. O-O-O {[%clk 0:02:41]}  Qd7 {[%clk 0:02:49]} 13. Qc2 {[%clk 0:02:13]}  Qe6 {[%clk 0:02:34]} 14. b3 {[%clk 0:02:04]}  Bf5 {[%clk 0:02:25]} 15. Qb2 {[%clk 0:02:03]}  Ng4 {[%clk 0:02:23]} 16. e4 {[%clk 0:01:43]}  Bxe4 {[%clk 0:02:20]} 17. Bc4 {[%clk 0:01:39]}  Qe7 {[%clk 0:02:14]} 18. Rde1 {[%clk 0:01:31]}  f5 {[%clk 0:02:06]} 19. Rhf1 {[%clk 0:01:21]}  Kb8 {[%clk 0:02:00]} 20. h3 {[%clk 0:01:16]}  Nf6 {[%clk 0:02:00]} 21. g4 {[%clk 0:01:03]}  g6 {[%clk 0:01:55]} 22. Re2 {[%clk 0:00:48]}  Qd7 {[%clk 0:01:44]} 23. Nd4 {[%clk 0:00:16]}  Nxd4 {[%clk 0:01:43]} 24. cxd4 {[%clk 0:00:17]}  Rxd4 {[%clk 0:01:43]} 25. f3 {[%clk 0:00:17]}  Bd3 {[%clk 0:01:37]} 26. Bxd3 {[%clk 0:00:16]}  Rxd3 {[%clk 0:01:37]} 27. Qxf6 {[%clk 0:00:15]}  Rxd2 {[%clk 0:01:35]} 28. Qxd8+ {[%clk 0:00:15]}  Qxd8 {[%clk 0:01:34]} 29. Rxd2 {[%clk 0:00:16]}  Qg5 {[%clk 0:01:26]} 30. Rd1 {[%clk 0:00:17]}  a5 {[%clk 0:01:25]} 31. Kb2 {[%clk 0:00:17]}  fxg4 {[%clk 0:01:24]} 32. hxg4 {[%clk 0:00:16]}  Qe5+ {[%clk 0:01:23]} 33. Ka3 {[%clk 0:00:15]}  h5 {[%clk 0:01:23]} 34. gxh5 {[%clk 0:00:14]}  gxh5 {[%clk 0:01:22]} 35. Rd5 {[%clk 0:00:15]}  Qe7+ {[%clk 0:01:21]} 36. Kb2 {[%clk 0:00:16]}  h4 {[%clk 0:01:13]} 37. Rxa5 {[%clk 0:00:15]}  b6 {[%clk 0:01:04]} 38. Rh5 {[%clk 0:00:14]}  Qf6+ {[%clk 0:01:03]} 39. Kc1 {[%clk 0:00:14]}  Qf4+ {[%clk 0:00:57]} 40. Rd2 {[%clk 0:00:14]}  Qxf3 {[%clk 0:00:50]} 41. Rxh4 {[%clk 0:00:13]}  Qf1+ {[%clk 0:00:50]} 42. Kc2 {[%clk 0:00:12]}  Qf5+ {[%clk 0:00:50]} 43. Kc1 {[%clk 0:00:13]}  Qf6 {[%clk 0:00:47]} 44. Rhd4 {[%clk 0:00:11]}  Qf1+ {[%clk 0:00:46]} 45. Kc2 {[%clk 0:00:12]}  Qa6 {[%clk 0:00:46]} 46. Kb2 {[%clk 0:00:11]}  Qa5 {[%clk 0:00:45]} 47. Rd8+ {[%clk 0:00:11]}  Kb7 {[%clk 0:00:45]} 48. R8d5 {[%clk 0:00:12]}  Qb4 {[%clk 0:00:44]} 49. R5d4 {[%clk 0:00:12]}  Qf8 {[%clk 0:00:44]} 50. R4d3 {[%clk 0:00:11]}  b5 {[%clk 0:00:45]} 51. Kc2 {[%clk 0:00:12]}  b4 {[%clk 0:00:45]} 52. Kb2 {[%clk 0:00:13]}  Qf6+ {[%clk 0:00:44]} 53. Kc2 {[%clk 0:00:13]}  Kb6 {[%clk 0:00:43]} 54. Kb1 {[%clk 0:00:14]}  Qf1+ {[%clk 0:00:41]} 55. Kb2 {[%clk 0:00:14]}  Qe1 {[%clk 0:00:39]} 56. Rd4 {[%clk 0:00:14]}  c5 {[%clk 0:00:38]} 57. R4d3 {[%clk 0:00:14]}  Qe5+ {[%clk 0:00:37]} 58. Kc2 {[%clk 0:00:15]}  Qa1 {[%clk 0:00:37]} 59. Rd6+ {[%clk 0:00:13]}  Kb5 {[%clk 0:00:37]} 60. Rd8 {[%clk 0:00:13]}  Qxa2+ {[%clk 0:00:37]} 61. Kc1 {[%clk 0:00:14]}  Qa1+ {[%clk 0:00:33]} 62. Kc2 {[%clk 0:00:14]}  Qc3+ {[%clk 0:00:34]} 63. Kd1 {[%clk 0:00:14]}  Qxb3+ {[%clk 0:00:35]} 64. Ke2 {[%clk 0:00:15]}  Qe6+ {[%clk 0:00:34]} 65. Kd1 {[%clk 0:00:16]}  b3 {[%clk 0:00:30]} 66. Rb8+ {[%clk 0:00:15]}  Kc4 {[%clk 0:00:30]} 67. Kc1 {[%clk 0:00:12]}  Qe1+ {[%clk 0:00:29]} 68. Rd1 {[%clk 0:00:12]}  Qc3+ {[%clk 0:00:29]} 69. Kb1 {[%clk 0:00:12]}  Qc2+ {[%clk 0:00:30]} 0-1


[Site "https://www.chess.com"]

[Event "Titled Tuesday Blitz June 28 Late 2022"]
[White "Goncalves, Davi Sulzbacher"]
[Black "Siniauski, Artsiom"]
[WhiteFideId "2154510"]
[BlackFideId "13512269"]
[WhiteElo "2107"]
[BlackElo "2187"]
[Result "1-0"]
[Round "08"]
[TimeControl "180+1"]
[Date "2022.06.29"]
[WhiteClock "0:01:35"]
[BlackClock "0:00:17"]

1. d4 {[%clk 0:03:00]}  Nf6 {[%clk 0:02:57]} 2. c4 {[%clk 0:03:01]}  e6 {[%clk 0:02:57]} 3. Nc3 {[%clk 0:03:02]}  Bb4 {[%clk 0:02:57]} 4. a3 {[%clk 0:03:02]}  Bxc3+ {[%clk 0:02:57]} 5. bxc3 {[%clk 0:03:03]}  O-O {[%clk 0:02:57]} 6. Bg5 {[%clk 0:03:01]}  h6 {[%clk 0:02:56]} 7. Bh4 {[%clk 0:03:00]}  b6 {[%clk 0:02:56]} 8. e4 {[%clk 0:03:00]}  g5 {[%clk 0:02:51]} 9. Bg3 {[%clk 0:02:52]}  Nxe4 {[%clk 0:02:51]} 10. Bd3 {[%clk 0:02:52]}  Bb7 {[%clk 0:02:48]} 11. f3 {[%clk 0:02:41]}  Nxg3 {[%clk 0:02:41]} 12. hxg3 {[%clk 0:02:42]}  Qf6 {[%clk 0:02:41]} 13. Nh3 {[%clk 0:02:38]}  d6 {[%clk 0:02:38]} 14. Nf2 {[%clk 0:02:38]}  Qg7 {[%clk 0:02:10]} 15. Ng4 {[%clk 0:02:35]}  Re8 {[%clk 0:02:10]} 16. Rxh6 {[%clk 0:02:29]}  f5 {[%clk 0:01:55]} 17. Nf6+ {[%clk 0:02:24]}  Kf8 {[%clk 0:01:36]} 18. Nxe8 {[%clk 0:02:23]}  Qxh6 {[%clk 0:01:35]} 19. Nxc7 {[%clk 0:02:22]}  Qh1+ {[%clk 0:01:33]} 20. Kf2 {[%clk 0:02:22]}  Qh6 {[%clk 0:01:20]} 21. Qh1 {[%clk 0:02:17]}  Qf6 {[%clk 0:01:05]} 22. Re1 {[%clk 0:01:53]}  Nc6 {[%clk 0:01:04]} 23. Rxe6 {[%clk 0:01:44]}  Qg7 {[%clk 0:00:55]} 24. Nxa8 {[%clk 0:01:41]}  Nxd4 {[%clk 0:00:40]} 25. Rh6 {[%clk 0:01:39]}  Qe5 {[%clk 0:00:17]} 26. Rh8+ {[%clk 0:01:36]}  Ke7 {[%clk 0:00:17]} 27. Qh7+ {[%clk 0:01:35]} 1-0


[Site "https://www.chess.com"]

[Event "Titled Tuesday Blitz June 28 Late 2022"]
[White "Gubajdullin, Alexei"]
[Black "Tinmaz, Kerem"]
[WhiteFideId "4141202"]
[BlackFideId "44559151"]
[WhiteElo "2280"]
[BlackElo "1443"]
[Result "1-0"]
[Round "08"]
[TimeControl "180+1"]
[Date "2022.06.29"]
[WhiteClock "0:01:04"]
[BlackClock "0:00:01"]

1. d4 {[%clk 0:03:00]}  d5 {[%clk 0:02:58]} 2. Nf3 {[%clk 0:03:00]}  Nf6 {[%clk 0:02:59]} 3. Bf4 {[%clk 0:03:01]}  Bf5 {[%clk 0:02:59]} 4. e3 {[%clk 0:03:01]}  e6 {[%clk 0:02:59]} 5. c4 {[%clk 0:02:59]}  c6 {[%clk 0:02:59]} 6. Qb3 {[%clk 0:02:58]}  Qb6 {[%clk 0:02:54]} 7. c5 {[%clk 0:02:58]}  Qxb3 {[%clk 0:02:51]} 8. axb3 {[%clk 0:02:58]}  Nbd7 {[%clk 0:02:44]} 9. Nbd2 {[%clk 0:02:56]}  Nh5 {[%clk 0:02:35]} 10. Bc7 {[%clk 0:02:38]}  Rc8 {[%clk 0:02:19]} 11. Bd6 {[%clk 0:02:37]}  Bxd6 {[%clk 0:02:02]} 12. cxd6 {[%clk 0:02:37]}  a6 {[%clk 0:01:52]} 13. Ne5 {[%clk 0:02:35]}  f6 {[%clk 0:01:39]} 14. Nxd7 {[%clk 0:02:16]}  Kxd7 {[%clk 0:01:39]} 15. Be2 {[%clk 0:02:16]}  Bg6 {[%clk 0:01:37]} 16. g4 {[%clk 0:02:16]}  Kxd6 {[%clk 0:01:21]} 17. gxh5 {[%clk 0:02:16]}  Bf5 {[%clk 0:01:21]} 18. b4 {[%clk 0:02:14]}  e5 {[%clk 0:01:18]} 19. Nb3 {[%clk 0:02:13]}  Rhe8 {[%clk 0:01:10]} 20. Rg1 {[%clk 0:02:10]}  g5 {[%clk 0:01:03]} 21. hxg6 {[%clk 0:02:10]}  hxg6 {[%clk 0:01:04]} 22. Kd2 {[%clk 0:02:04]}  Rh8 {[%clk 0:00:55]} 23. Rg2 {[%clk 0:02:04]}  Rh4 {[%clk 0:00:42]} 24. Bd3 {[%clk 0:01:54]}  e4 {[%clk 0:00:35]} 25. Be2 {[%clk 0:01:53]}  Rch8 {[%clk 0:00:31]} 26. Nc5 {[%clk 0:01:45]}  Kc7 {[%clk 0:00:31]} 27. Rh1 {[%clk 0:01:32]}  g5 {[%clk 0:00:27]} 28. Na4 {[%clk 0:01:20]}  Bh3 {[%clk 0:00:21]} 29. Rg3 {[%clk 0:01:19]}  Bf5 {[%clk 0:00:20]} 30. Nc3 {[%clk 0:01:17]}  Rxh2 {[%clk 0:00:18]} 31. Rxh2 {[%clk 0:01:16]}  Rxh2 {[%clk 0:00:19]} 32. Nd1 {[%clk 0:01:16]}  Kb6 {[%clk 0:00:14]} 33. Bg4 {[%clk 0:01:14]}  Bg6 {[%clk 0:00:13]} 34. Rh3 {[%clk 0:01:12]}  Rg2 {[%clk 0:00:12]} 35. Be6 {[%clk 0:01:11]}  Kb5 {[%clk 0:00:06]} 36. Rh6 {[%clk 0:01:10]}  Be8 {[%clk 0:00:02]} 37. Bc8 {[%clk 0:01:06]}  b6 {[%clk 0:00:01]} 38. Rxf6 {[%clk 0:01:05]}  Kxb4 {[%clk 0:00:01]} 39. Bxa6 {[%clk 0:01:05]}  c5 {[%clk 0:00:01]} 40. dxc5 {[%clk 0:01:04]} 1-0


[Site "https://www.chess.com"]

[Event "Titled Tuesday Blitz June 28 Late 2022"]
[White "Hansen, Eric"]
[Black "Berant"]
[WhiteFideId "2606771"]
[WhiteElo "2568"]
[BlackElo "2532"]
[Result "1-0"]
[Round "08"]
[TimeControl "180+1"]
[Date "2022.06.28"]
[WhiteClock "0:01:00"]
[BlackClock "0:00:11"]

1. e4 {[%clk 0:02:59]}  c5 {[%clk 0:02:58]} 2. Nf3 {[%clk 0:02:58]}  Nc6 {[%clk 0:02:58]} 3. Bb5 {[%clk 0:02:53]}  g6 {[%clk 0:02:56]} 4. O-O {[%clk 0:02:52]}  Bg7 {[%clk 0:02:56]} 5. Re1 {[%clk 0:02:51]}  Nf6 {[%clk 0:02:55]} 6. c3 {[%clk 0:02:51]}  O-O {[%clk 0:02:52]} 7. h3 {[%clk 0:02:50]}  a6 {[%clk 0:02:40]} 8. Bxc6 {[%clk 0:02:47]}  dxc6 {[%clk 0:02:38]} 9. d4 {[%clk 0:02:47]}  cxd4 {[%clk 0:02:37]} 10. cxd4 {[%clk 0:02:48]}  Qc7 {[%clk 0:02:30]} 11. Nc3 {[%clk 0:02:48]}  c5 {[%clk 0:02:18]} 12. e5 {[%clk 0:02:40]}  Ne8 {[%clk 0:01:58]} 13. d5 {[%clk 0:02:37]}  b5 {[%clk 0:01:50]} 14. Bf4 {[%clk 0:02:21]}  Bf5 {[%clk 0:01:35]} 15. g4 {[%clk 0:02:07]}  Bd7 {[%clk 0:00:59]} 16. Qd2 {[%clk 0:02:05]}  Qb6 {[%clk 0:00:56]} 17. Bh6 {[%clk 0:01:48]}  Nc7 {[%clk 0:00:49]} 18. Rad1 {[%clk 0:01:44]}  Rad8 {[%clk 0:00:30]} 19. Qf4 {[%clk 0:01:25]}  b4 {[%clk 0:00:19]} 20. Ne4 {[%clk 0:01:21]}  Ba4 {[%clk 0:00:18]} 21. b3 {[%clk 0:01:21]}  Nxd5 {[%clk 0:00:14]} 22. Rxd5 {[%clk 0:01:20]}  Rxd5 {[%clk 0:00:13]} 23. bxa4 {[%clk 0:01:21]}  c4 {[%clk 0:00:12]} 24. Bxg7 {[%clk 0:00:59]}  Kxg7 {[%clk 0:00:12]} 25. g5 {[%clk 0:01:00]}  c3 {[%clk 0:00:11]} 26. Qh4 {[%clk 0:01:00]} 1-0


[Site "https://www.chess.com"]